fUST/lending_fUST_20250926
["ID","MTS","AMOUNT","RATE_DAILY","PERIOD"]
[387711512,1758821448886,-480.0,0.00019892,2]
[387711514,1758821448896,-480.0,0.00019892,2]
[387711516,1758821448905,-151.0,0.00019892,2]
[387711518,1758821448915,-151.0,0.00019892,2]
[387711520,1758821448924,-1382.36,0.00019892,2]
[387711522,1758821448934,-480.0,0.00019892,2]
[387711524,1758821448943,-151.0,0.00019892,2]
[387711526,1758821448953,-480.0,0.00019892,2]
[387711528,1758821448963,-480.0,0.00019892,2]
[387711531,1758821448975,-151.0,0.00019892,2]
[387711533,1758821448985,-480.0,0.00019892,2]
[387711535,1758821448995,-1000.0,0.00019892,2]
[387711537,1758821449004,-480.0,0.00019892,2]
[387711539,1758821449014,-480.0,0.00019892,2]
[387711541,1758821449024,-480.0,0.00019892,2]
[387711543,1758821449034,-566.83192568,0.00019892,2]
[387711545,1758821449043,-480.0,0.00019892,2]
[387711547,1758821449052,-480.0,0.00019892,2]
[387711549,1758821449061,-480.0,0.00019892,2]
[387711551,1758821449071,-480.0,0.00019892,2]
[387711553,1758821449081,-480.0,0.00019892,2]
[387711555,1758821449090,-480.0,0.00019892,2]
[387711557,1758821449100,-483.64938974,0.00019892,2]
[387711559,1758821449109,-480.0,0.00019892,2]
[387711561,1758821449119,-480.0,0.00019892,2]
[387711563,1758821449129,-471.33606406,0.00019892,2]
[387711565,1758821449138,-480.0,0.00019892,2]
[387711567,1758821449147,-480.0,0.00019892,2]
[387711569,1758821449157,-480.0,0.00019892,2]
[387711571,1758821449166,-480.0,0.00019892,2]
[387711573,1758821449176,-480.0,0.00019892,2]
[387711575,1758821449186,-480.0,0.00019892,2]
[387711577,1758821449195,-480.0,0.00019892,2]
[387711579,1758821449205,-480.0,0.00019892,2]
[387711581,1758821449215,-500.0,0.00019894,2]
[387711583,1758821449226,-151.0,0.00019894,2]
[387711585,1758821449237,-151.0,0.00019894,2]
[387711587,1758821449246,-198.0,0.00019894,2]
[387711589,1758821449256,-198.00504305,0.00019894,2]
[387711591,1758821449267,-151.0,0.00019894,2]
[387711593,1758821449277,-151.0,0.00019894,2]
[387711595,1758821449287,-1231.49,0.00019894,2]
[387711597,1758821449298,-151.0,0.00019894,2]
[387711599,1758821449308,-480.0,0.00019894,2]
[387711602,1758821449319,-654.16,0.00019894,2]
[387711604,1758821449329,-500.0,0.00019895,2]
[387711606,1758821449339,-480.0,0.00019895,2]
[387711608,1758821449349,-480.0,0.00019895,2]
[387711610,1758821449359,-519.66220478,0.00019895,2]
[387711612,1758821449369,-480.0,0.00019895,2]
[387711614,1758821449378,-480.0,0.00019895,2]
[387711616,1758821449387,-480.0,0.00019895,2]
[387711618,1758821449397,-480.0,0.00019895,2]
[387711620,1758821449410,-507.69755498,0.00019895,2]
[387711622,1758821449419,-480.0,0.00019895,2]
[387711624,1758821449428,-480.0,0.00019895,2]
[387711626,1758821449438,-480.0,0.00019895,2]
[387711628,1758821449449,-480.0,0.00019895,2]
[387711630,1758821449458,-480.0,0.00019895,2]
[387711632,1758821449468,-4028.8,0.00019895,2]
[387711634,1758821449478,-706.04,0.00019895,2]
[387711636,1758821449488,-151.0,0.00019895,2]
[387711638,1758821449497,-151.0,0.00019895,2]
[387711640,1758821449508,-151.0,0.00019895,2]
[387711642,1758821449518,-151.0,0.00019895,2]
[387711644,1758821449528,-151.0,0.00019895,2]
[387711646,1758821449538,-151.0,0.00019895,2]
[387711648,1758821449547,-151.0,0.00019895,2]
[387711650,1758821449557,-480.0,0.00019896,2]
[387711652,1758821449566,-480.0,0.00019896,2]
[387711654,1758821449575,-480.0,0.00019896,2]
[387711656,1758821449584,-480.0,0.00019896,2]
[387711658,1758821449594,-592.59,0.00019896,2]
[387711660,1758821449603,-480.0,0.00019896,2]
[387711662,1758821449613,-151.0,0.00019896,2]
[387711664,1758821449622,-151.0,0.00019896,2]
[387711666,1758821449632,-301.781372,0.00019896,2]
[387711668,1758821449641,-151.0,0.00019896,2]
[387711670,1758821449650,-151.0,0.00019896,2]
[387711672,1758821449659,-151.0,0.00019896,2]
[387711674,1758821449669,-151.0,0.00019896,2]
[387711676,1758821449679,-151.0,0.00019896,2]
[387711678,1758821449688,-151.0,0.00019896,2]
[387711680,1758821449697,-151.0,0.00019896,2]
[387711682,1758821449706,-151.0,0.00019896,2]
[387711684,1758821449716,-151.0,0.00019896,2]
[387711686,1758821449726,-151.0,0.00019896,2]
[387711688,1758821449735,-151.0,0.00019896,2]
[387711690,1758821449744,-151.0,0.00019896,2]
[387711692,1758821449754,-151.0,0.00019896,2]
[387711694,1758821449763,-151.0,0.00019896,2]
[387711696,1758821449772,-993.46550212,0.000199,2]
[387711698,1758821449781,-193.28053724,0.00019921,2]
[387711700,1758821449791,-1000.0,0.00019921,2]
[387711702,1758821449800,-500.0,0.00019921,2]
[387711704,1758821449809,-1000.0,0.00019965,2]
[387711706,1758821449818,-200.4500569,0.00019965,2]
[387711708,1758821449828,-1000.0,0.00019965,2]
[387711710,1758821449838,-1000.0,0.00019965,2]
[387711713,1758821449848,-1000.0,0.00019965,2]
[387711715,1758821449857,-1006.43456884,0.00019965,2]
[387711717,1758821449866,-166.28049624,0.00019965,2]
[387711719,1758821449875,-500.0,0.00019965,2]
[387711721,1758821449883,-151.0,0.00019965,2]
[387711723,1758821449892,-500.0,0.00019965,2]
[387711732,1758821449971,-151.0,0.00019965,2]
[387711734,1758821449982,-500.0,0.00019965,2]
[387711737,1758821449992,-151.0,0.00019965,2]
[387711739,1758821450001,-500.0,0.00019965,2]
[387711740,1758821450011,-151.0,0.00019965,2]
[387711743,1758821450020,-500.0,0.00019965,2]
[387711745,1758821450030,-151.0,0.00019965,2]
[387711747,1758821450039,-350.0,0.00019965,2]
[387711749,1758821450048,-500.0,0.00019965,2]
[387711751,1758821450057,-151.0,0.00019965,2]
[387711753,1758821450067,-350.0,0.00019965,2]
[387711754,1758821450076,-500.0,0.00019965,2]
[387711757,1758821450085,-151.0,0.00019965,2]
[387711758,1758821450095,-350.0,0.00019965,2]
[387711761,1758821450104,-500.0,0.00019965,2]
[387711763,1758821450114,-350.0,0.00019965,2]
[387711765,1758821450124,-500.0,0.00019965,2]
[387711767,1758821450133,-460.33648398,0.00019965,2]
[387711769,1758821450143,-500.0,0.00019965,2]
[387711771,1758821450152,-500.0,0.00019965,2]
[387711773,1758821450162,-500.0,0.00019965,2]
[387711775,1758821450172,-1000.0,0.00019965,2]
[387711777,1758821450181,-1000.0,0.00019965,2]
[387711779,1758821450190,-1000.0,0.00019965,2]
[387711781,1758821450199,-1082.87501218,0.00019965,2]
[387711783,1758821450208,-500.0,0.00019973,2]
[387711785,1758821450217,-500.0,0.00019973,2]
[387711787,1758821450229,-100000.0,0.0001999,2]
[387711789,1758821450238,-151.0,0.0001999,2]
[387711791,1758821450248,-151.0,0.0001999,2]
[387711793,1758821450257,-281.927366,0.0001999,2]
[387711795,1758821450267,-193.271804,0.0001999,2]
[387711797,1758821450276,-151.0,0.0001999,2]
[387711799,1758821450285,-151.0,0.0001999,2]
[387711801,1758821450295,-151.0,0.0001999,2]
[387711803,1758821450304,-151.0,0.0001999,2]
[387711805,1758821450313,-151.0,0.0001999,2]
[387711807,1758821450323,-151.0,0.0001999,2]
[387711809,1758821450332,-236.946811,0.0001999,2]
[387711811,1758821450342,-236.946811,0.0001999,2]
[387711813,1758821450351,-236.946811,0.0001999,2]
[387711815,1758821450361,-236.946804,0.0001999,2]
[387711817,1758821450370,-188.014736,0.0001999,2]
[387711819,1758821450380,-151.0,0.0001999,2]
[387711821,1758821450389,-151.0,0.0001999,2]
[387711823,1758821450399,-171.228466,0.0001999,2]
[387711826,1758821450410,-151.0,0.0001999,2]
[387711828,1758821450419,-206.526152,0.0001999,2]
[387711830,1758821450428,-151.0,0.0001999,2]
[387711831,1758821450438,-151.0,0.0001999,2]
[387711834,1758821450448,-151.0,0.0001999,2]
[387711836,1758821450457,-151.0,0.0001999,2]
[387711838,1758821450467,-151.0,0.0001999,2]
[387711840,1758821450478,-150.60430726,0.0002,7]
[387711842,1758821450488,-394.16608957,0.00020069,2]
[387711844,1758821450497,-480.0,0.00020157,2]
[387711846,1758821450507,-1034.36,0.00020157,2]
[387711848,1758821450516,-480.0,0.00020157,2]
[387711850,1758821450525,-480.0,0.00020159,2]
[387711852,1758821450536,-480.0,0.0002016,2]
[387711854,1758821450545,-579.04,0.0002016,2]
[387711856,1758821450555,-865.63,0.0002016,2]
[387711858,1758821450564,-480.0,0.0002016,2]
[387711860,1758821450574,-1624.91,0.0002016,2]
[387711862,1758821450583,-480.0,0.0002016,2]
[387711864,1758821450592,-480.0,0.0002016,2]
[387711866,1758821450602,-480.0,0.0002016,2]
[387711868,1758821450611,-530.11,0.0002016,2]
[387711870,1758821450620,-538.39,0.0002016,2]
[387711872,1758821450630,-480.0,0.0002016,2]
[387711874,1758821450640,-480.0,0.0002016,2]
[387711876,1758821450649,-480.0,0.0002016,2]
[387711878,1758821450659,-155.80670484,0.00020161,2]
[387711880,1758821450668,-198.0,0.00020161,2]
[387711882,1758821450678,-198.0,0.00020162,2]
[387711885,1758821450687,-198.0,0.00020162,2]
[387711887,1758821450696,-480.0,0.00020163,2]
[387711888,1758821450705,-471.36140303,0.00020163,2]
[387711890,1758821450714,-480.0,0.00020163,2]
[387711892,1758821450723,-480.0,0.00020163,2]
[387711894,1758821450734,-480.0,0.00020163,2]
[387711896,1758821450743,-158.97483,0.00020163,2]
[387711898,1758821450752,-151.0,0.00020163,2]
[387711901,1758821450761,-480.0,0.00020163,2]
[387711903,1758821450770,-151.0,0.00020163,2]
[387711904,1758821450779,-151.0,0.00020163,2]
[387711907,1758821450789,-151.0,0.00020163,2]
[387711909,1758821450798,-151.0,0.00020163,2]
[387711910,1758821450807,-152.175508,0.00020163,2]
[387711913,1758821450816,-151.0,0.00020163,2]
[387711915,1758821450825,-480.0,0.00020163,2]
[387711916,1758821450835,-150.75432975,0.00020163,2]
[387711919,1758821450845,-480.0,0.00020163,2]
[387711921,1758821450854,-480.0,0.00020163,2]
[387711922,1758821450863,-480.0,0.00020163,2]
[387711925,1758821450873,-480.0,0.00020163,2]
[387711927,1758821450883,-480.0,0.00020163,2]
[387711929,1758821450892,-480.0,0.00020163,2]
[387711931,1758821450901,-480.0,0.00020163,2]
[387711933,1758821450910,-331.75270422,0.00020163,2]
[387711935,1758821450919,-480.0,0.00020163,2]
[387711937,1758821450928,-480.0,0.00020163,2]
[387711939,1758821450938,-480.0,0.00020163,2]
[387711941,1758821450947,-480.0,0.00020163,2]
[387711943,1758821450957,-480.0,0.00020163,2]
[387711944,1758821450967,-480.0,0.00020163,2]
[387711946,1758821450978,-480.0,0.00020163,2]
[387711949,1758821450992,-480.0,0.00020163,2]
[387711950,1758821451002,-480.0,0.00020163,2]
[387711953,1758821451013,-480.0,0.00020163,2]
[387711955,1758821451024,-366.23888349,0.00020163,2]
[387711957,1758821451034,-480.0,0.00020163,2]
[387711958,1758821451043,-480.0,0.00020163,2]
[387711960,1758821451052,-480.0,0.00020163,2]
[387711963,1758821451062,-363.66748593,0.00020163,2]
[387711965,1758821451071,-480.0,0.00020163,2]
[387711967,1758821451081,-627.38,0.00020163,2]
[387711969,1758821451090,-480.0,0.00020163,2]
[387711971,1758821451099,-480.0,0.00020163,2]
[387711972,1758821451109,-480.0,0.00020163,2]
[387711975,1758821451119,-480.0,0.00020163,2]
[387711977,1758821451128,-480.0,0.00020163,2]
[387711979,1758821451137,-480.0,0.00020163,2]
[387711980,1758821451146,-480.0,0.00020163,2]
[387711982,1758821451155,-597.47,0.00020163,2]
[387711985,1758821451166,-480.0,0.00020163,2]
[387711986,1758821451175,-179.91292044,0.00020163,2]
[387711988,1758821451184,-480.0,0.00020163,2]
[387711990,1758821451193,-480.0,0.00020163,2]
[387711992,1758821451202,-480.0,0.00020163,2]
[387711994,1758821451213,-480.0,0.00020163,2]
[387711996,1758821451222,-480.0,0.00020163,2]
[387711998,1758821451236,-480.0,0.00020166,2]
[387712000,1758821451245,-580.30360116,0.00020166,2]
[387712002,1758821451254,-592.58810819,0.00020166,2]
[387712004,1758821451263,-480.0,0.00020166,2]
[387712006,1758821451273,-480.0,0.00020166,2]
[387712008,1758821451282,-352.11445371,0.00020166,2]
[387712010,1758821451291,-480.0,0.00020166,2]
[387712012,1758821451301,-1189.57,0.00020166,2]
[387712014,1758821451310,-480.0,0.00020166,2]
[387712016,1758821451319,-459.2,0.00020166,2]
[387712018,1758821451328,-1381.68,0.00020166,2]
[387712020,1758821451338,-480.0,0.00020166,2]
[387712021,1758821451347,-569.79,0.00020166,2]
[387712022,1758821451356,-480.0,0.00020166,2]
[387712023,1758821451365,-480.0,0.00020166,2]
[387712024,1758821451374,-547.20513083,0.00020166,2]
[387712025,1758821451383,-480.0,0.00020166,2]
[387712026,1758821451392,-492.38334792,0.00020166,2]
[387712027,1758821451402,-480.0,0.00020166,2]
[387712028,1758821451413,-1382.36,0.00020166,2]
[387712029,1758821451422,-480.0,0.00020166,2]
[387712030,1758821451431,-480.0,0.00020166,2]
[387712031,1758821451440,-480.0,0.00020166,2]
[387712032,1758821451451,-480.0,0.00020166,2]
[387712033,1758821451460,-480.0,0.00020166,2]
[387712035,1758821451469,-489.36610379,0.00020166,2]
[387712036,1758821451482,-480.0,0.00020166,2]
[387712038,1758821451491,-480.0,0.00020166,2]
[387712040,1758821451501,-480.0,0.00020166,2]
[387712042,1758821451510,-480.0,0.00020166,2]
[387712051,1758821451584,-480.0,0.00020166,2]
[387712053,1758821451594,-151.0,0.00020168,2]
[387712055,1758821451604,-198.0,0.00020168,2]
[387712057,1758821451613,-1231.49,0.00020168,2]
[387712059,1758821451623,-480.0,0.00020168,2]
[387712061,1758821451632,-654.16,0.00020168,2]
[387712063,1758821451642,-500.0,0.00020169,2]
[387712065,1758821451651,-626.55593184,0.00020169,2]
[387712067,1758821451661,-480.0,0.00020169,2]
[387712069,1758821451670,-480.0,0.00020169,2]
[387712071,1758821451679,-480.0,0.00020169,2]
[387712073,1758821451689,-498.1372238,0.00020169,2]
[387712075,1758821451698,-480.0,0.00020169,2]
[387712077,1758821451707,-480.0,0.00020169,2]
[387712079,1758821451717,-480.0,0.00020169,2]
[387712081,1758821451728,-480.0,0.00020169,2]
[387712083,1758821451738,-480.0,0.00020169,2]
[387712085,1758821451747,-4028.8,0.00020169,2]
[387712087,1758821451757,-706.04,0.00020169,2]
[387712089,1758821451766,-480.0,0.0002017,2]
[387712091,1758821451777,-480.0,0.0002017,2]
[387712093,1758821451787,-480.0,0.0002017,2]
[387712095,1758821451797,-592.59,0.0002017,2]
[387712097,1758821451806,-480.0,0.0002017,2]
[387712099,1758821451817,-500.03115209,0.00020173,2]
[387712101,1758821451827,-500.0,0.00020173,2]
[387712103,1758821451837,-501.58013168,0.00020173,2]
[387712105,1758821451847,-500.0,0.00020173,2]
[387712107,1758821451856,-500.0,0.00020173,2]
[387712109,1758821451865,-500.0,0.00020173,2]
[387712111,1758821451876,-500.0,0.00020173,2]
[387712113,1758821451886,-500.0,0.00020173,2]
[387712115,1758821451895,-500.0,0.00020173,2]
[387712117,1758821451904,-629.49467178,0.00020173,2]
[387712119,1758821451917,-1425.02822656,0.0002019,2]
[387712121,1758821451926,-9806.11693039,0.000202,2]
[387712123,1758821451936,-501.06641698,0.00020221,2]
[387712125,1758821451946,-501.05629741,0.00020221,2]
[387712127,1758821451955,-500.66169981,0.00020221,2]
[387712129,1758821451965,-1000.0,0.00020221,2]
[387712131,1758821451975,-1000.0,0.00020221,2]
[387712133,1758821451990,-1000.0,0.00020221,2]
[387712135,1758821452000,-506.80732628,0.00020221,2]
[387712137,1758821452009,-1009.17100949,0.00020221,2]
[387712139,1758821452019,-1000.0,0.00020221,2]
[387712141,1758821452028,-500.0,0.00020221,2]
[387712143,1758821452038,-829.01951018,0.00020395,2]
[387712145,1758821452047,-1004.43716036,0.00020421,2]
[387712147,1758821452057,-1001.64480659,0.00020421,2]
[387712149,1758821452067,-501.51328029,0.00020421,2]
[387712151,1758821452076,-503.84850847,0.00020421,2]
[387712153,1758821452086,-500.0,0.00020421,2]
[387712155,1758821452095,-151.0,0.00020421,2]
[387712157,1758821452105,-151.0,0.00020421,2]
[387712159,1758821452115,-151.0,0.00020421,2]
[387712161,1758821452124,-151.0,0.00020421,2]
[387712163,1758821452133,-151.0,0.00020421,2]
[387712165,1758821452143,-151.0,0.00020421,2]
[387712167,1758821452152,-480.0,0.00020431,2]
[387712169,1758821452161,-1034.36,0.00020431,2]
[387712171,1758821452171,-480.0,0.00020431,2]
[387712173,1758821452181,-480.0,0.00020433,2]
[387712175,1758821452191,-480.0,0.00020434,2]
[387712177,1758821452201,-579.04,0.00020434,2]
[387712179,1758821452212,-865.63,0.00020434,2]
[387712181,1758821452221,-480.0,0.00020434,2]
[387712183,1758821452233,-1624.91,0.00020434,2]
[387712185,1758821452242,-480.0,0.00020434,2]
[387712187,1758821452252,-480.0,0.00020434,2]
[387712189,1758821452261,-480.0,0.00020434,2]
[387712190,1758821452270,-530.11,0.00020434,2]
[387712193,1758821452280,-538.39,0.00020434,2]
[387712194,1758821452290,-480.0,0.00020434,2]
[387712196,1758821452299,-480.0,0.00020434,2]
[387712198,1758821452309,-480.0,0.00020434,2]
[387712200,1758821452319,-480.0,0.00020437,2]
[387712202,1758821452329,-480.0,0.00020437,2]
[387712204,1758821452339,-480.0,0.00020437,2]
[387712205,1758821452348,-480.0,0.00020437,2]
[387712206,1758821452357,-480.0,0.00020437,2]
[387712207,1758821452367,-480.0,0.00020437,2]
[387712208,1758821452377,-480.0,0.00020437,2]
[387712209,1758821452387,-480.0,0.00020437,2]
[387712210,1758821452398,-480.0,0.00020437,2]
[387712211,1758821452412,-480.0,0.00020437,2]
[387712212,1758821452422,-480.0,0.00020437,2]
[387712213,1758821452432,-480.0,0.00020437,2]
[387712214,1758821452442,-480.0,0.00020437,2]
[387712215,1758821452453,-480.0,0.00020437,2]
[387712216,1758821452463,-480.0,0.00020437,2]
[387712217,1758821452474,-480.0,0.00020437,2]
[387712218,1758821452493,-480.0,0.00020437,2]
[387712219,1758821452502,-480.0,0.00020437,2]
[387712220,1758821452512,-480.0,0.00020437,2]
[387712221,1758821452521,-627.38,0.00020437,2]
[387712222,1758821452531,-480.0,0.00020437,2]
[387712223,1758821452541,-480.0,0.00020437,2]
[387712224,1758821452551,-480.0,0.00020437,2]
[387712225,1758821452560,-480.0,0.00020437,2]
[387712226,1758821452569,-485.86048733,0.00020437,2]
[387712227,1758821452579,-480.0,0.00020437,2]
[387712228,1758821452588,-480.0,0.00020437,2]
[387712229,1758821452599,-597.47,0.00020437,2]
[387712230,1758821452608,-480.0,0.00020437,2]
[387712231,1758821452618,-480.0,0.00020437,2]
[387712232,1758821452627,-480.0,0.00020437,2]
[387712233,1758821452637,-480.0,0.00020437,2]
[387712234,1758821452646,-500.56870023,0.0002044,2]
[387712235,1758821452655,-563.31423804,0.0002044,2]
[387712236,1758821452665,-480.0,0.0002044,2]
[387712237,1758821452674,-1189.57,0.0002044,2]
[387712238,1758821452684,-480.0,0.0002044,2]
[387712239,1758821452693,-1381.68,0.0002044,2]
[387712240,1758821452702,-480.0,0.0002044,2]
[387712241,1758821452712,-569.79,0.0002044,2]
[387712242,1758821452721,-1382.36,0.0002044,2]
[387712243,1758821452734,-480.0,0.0002044,2]
[387712244,1758821452743,-556.46029798,0.0002044,2]
[387712245,1758821452753,-198.65471073,0.00020442,2]
[387712246,1758821452763,-1231.49,0.00020442,2]
[387712247,1758821452773,-480.0,0.00020442,2]
[387712248,1758821452782,-654.16,0.00020442,2]
[387712249,1758821452792,-500.0,0.00020443,2]
[387712251,1758821452801,-480.0,0.00020443,2]
[387712253,1758821452811,-480.0,0.00020443,2]
[387712255,1758821452820,-480.0,0.00020443,2]
[387712256,1758821452830,-480.0,0.00020443,2]
[387712258,1758821452840,-480.0,0.00020443,2]
[387712260,1758821452849,-480.0,0.00020443,2]
[387712262,1758821452859,-4028.8,0.00020443,2]
[387712264,1758821452868,-706.04,0.00020443,2]
[387712265,1758821452878,-480.0,0.00020444,2]
[387712266,1758821452887,-480.0,0.00020444,2]
[387712267,1758821452897,-592.59,0.00020444,2]
[387712269,1758821452907,-480.0,0.00020444,2]
[387712271,1758821452916,-523.00889075,0.00020468,2]
[387712272,1758821452925,-160.0,0.00020517,2]
[387712273,1758821452935,-602.65170465,0.00020521,2]
[387712274,1758821452944,-549.24933527,0.00020521,2]
[387712275,1758821452954,-1369.67297984,0.0002061,2]
[387712276,1758821452965,-28567.35474008,0.00020627,3]
[387712277,1758821452974,-151.0,0.00020627,2]
[387712278,1758821452989,-151.0,0.00020627,2]
[387712279,1758821452999,-151.0,0.00020627,2]
[387712280,1758821453008,-151.0,0.00020627,2]
[387712281,1758821453017,-151.0,0.00020627,2]
[387712282,1758821453027,-1425.02822656,0.00020662,2]
[387712283,1758821453037,-209.0,0.00020686,2]
[387712284,1758821453046,-1548.96,0.00020704,3]
[387712285,1758821453112,-995.34,0.00020704,3]
[387712286,1758821453129,-497.68,0.00020704,3]
[387712287,1758821453138,-480.0,0.00020705,2]
[387712288,1758821453149,-1034.36,0.00020705,2]
[387712289,1758821453159,-480.0,0.00020705,2]
[387712290,1758821453168,-233.00201586,0.00020707,2]
[387712291,1758821453178,-480.0,0.00020708,2]
[387712292,1758821453188,-579.04,0.00020708,2]
[387712293,1758821453197,-865.63,0.00020708,2]
[387712294,1758821453207,-480.0,0.00020708,2]
[387712295,1758821453217,-1624.91,0.00020708,2]
[387712296,1758821453226,-480.0,0.00020708,2]
[387712297,1758821453239,-480.0,0.00020708,2]
[387712298,1758821453249,-480.0,0.00020708,2]
[387712299,1758821453258,-530.11,0.00020708,2]
[387712300,1758821453268,-538.39,0.00020708,2]
[387712301,1758821453278,-480.0,0.00020708,2]
[387712302,1758821453287,-480.0,0.00020708,2]
[387712303,1758821453297,-480.0,0.00020708,2]
[387712304,1758821453307,-480.0,0.00020711,2]
[387712305,1758821453317,-351.95208544,0.00020711,2]
[387712306,1758821453327,-294.13368788,0.00020711,2]
[387712307,1758821453337,-480.0,0.00020711,2]
[387712308,1758821453346,-480.0,0.00020711,2]
[387712309,1758821453356,-480.0,0.00020711,2]
[387712310,1758821453365,-480.0,0.00020711,2]
[387712311,1758821453374,-480.0,0.00020711,2]
[387712312,1758821453384,-480.0,0.00020711,2]
[387712313,1758821453393,-480.0,0.00020711,2]
[387712314,1758821453404,-480.0,0.00020711,2]
[387712315,1758821453415,-480.0,0.00020711,2]
[387712316,1758821453424,-480.0,0.00020711,2]
[387712317,1758821453433,-480.0,0.00020711,2]
[387712318,1758821453443,-480.0,0.00020711,2]
[387712319,1758821453454,-627.38,0.00020711,2]
[387712320,1758821453463,-480.0,0.00020711,2]
[387712321,1758821453474,-480.0,0.00020711,2]
[387712322,1758821453491,-480.0,0.00020711,2]
[387712323,1758821453501,-234.32904614,0.00020711,2]
[387712324,1758821453510,-480.0,0.00020711,2]
[387712325,1758821453520,-480.0,0.00020711,2]
[387712326,1758821453530,-597.47,0.00020711,2]
[387712327,1758821453540,-173.49,0.00020711,2]
[387712328,1758821453550,-480.0,0.00020711,2]
[387712329,1758821453559,-480.0,0.00020711,2]
[387712330,1758821453570,-480.0,0.00020711,2]
[387712331,1758821453580,-480.0,0.00020714,2]
[387712332,1758821453590,-1189.57,0.00020714,2]
[387712333,1758821453601,-480.0,0.00020714,2]
[387712334,1758821453611,-1381.68,0.00020714,2]
[387712335,1758821453621,-569.79,0.00020714,2]
[387712336,1758821453631,-1382.36,0.00020714,2]
[387712337,1758821453640,-480.0,0.00020714,2]
[387712338,1758821453650,-1231.49,0.00020716,2]
[387712339,1758821453659,-480.0,0.00020716,2]
[387712340,1758821453669,-654.16,0.00020716,2]
[387712341,1758821453679,-452.55091761,0.00020717,2]
[387712342,1758821453688,-480.0,0.00020717,2]
[387712343,1758821453698,-480.0,0.00020717,2]
[387712344,1758821453708,-480.0,0.00020717,2]
[387712345,1758821453718,-480.0,0.00020717,2]
[387712346,1758821453729,-480.0,0.00020717,2]
[387712347,1758821453741,-4028.8,0.00020717,2]
[387712348,1758821453751,-706.04,0.00020717,2]
[387712349,1758821453760,-470.37228205,0.00020718,2]
[387712350,1758821453770,-592.59,0.00020718,2]
[387712351,1758821453779,-480.0,0.00020718,2]
[387712353,1758821453789,-702.87362549,0.00020721,2]
[387712354,1758821453799,-742.22199612,0.00020721,2]
[387712355,1758821453808,-1000.0,0.00020721,2]
[387712356,1758821453818,-449.93720386,0.00020768,2]
[387712357,1758821453828,-1500.0,0.00020768,2]
[387712358,1758821453837,-1500.0,0.00020768,2]
[387712359,1758821453847,-1500.0,0.00020768,2]
[387712360,1758821453856,-209.0,0.0002097,2]
[387712361,1758821453866,-993.46550188,0.00020972,2]
[387712362,1758821453875,-480.0,0.00020979,2]
[387712363,1758821453885,-1034.36,0.00020979,2]
[387712364,1758821453895,-480.0,0.00020979,2]
[387712365,1758821453904,-570.63998174,0.00020982,2]
[387712366,1758821453914,-579.04,0.00020982,2]
[387712367,1758821453923,-865.63,0.00020982,2]
[387712368,1758821453933,-480.0,0.00020982,2]
[387712369,1758821453943,-1624.91,0.00020982,2]